fUSD/lending_fUSD_20250214
["ID","MTS","AMOUNT","RATE_DAILY","PERIOD"]
[353061214,1739537444093,-500.0,0.00013698,2]
[353061216,1739537444102,-501.19897411,0.00013698,2]
[353061218,1739537444111,-500.0,0.00013698,2]
[353061220,1739537444120,-500.19314441,0.00013698,2]
[353061222,1739537444129,-500.0,0.00013698,2]
[353061224,1739537444140,-500.0,0.00013698,2]
[353061226,1739537444149,-500.0,0.00013698,2]
[353061228,1739537444158,-503.1479982,0.00013698,2]
[353061230,1739537444168,-500.0,0.00013698,2]
[353061232,1739537444177,-500.0,0.00013698,2]
[353061234,1739537444186,-501.27797659,0.00013698,2]
[353061236,1739537444195,-509.62798422,0.00013698,2]
[353061238,1739537444205,-500.0,0.00013698,2]
[353061240,1739537444214,-500.0,0.00013698,2]
[353061242,1739537444223,-500.0,0.00013698,2]
[353061244,1739537444233,-500.0,0.00013698,2]
[353061246,1739537444242,-500.0,0.00013698,2]
[353061248,1739537444252,-500.0,0.00013698,2]
[353061250,1739537444261,-500.0,0.00013698,2]
[353061252,1739537444271,-500.0,0.00013698,2]
[353061254,1739537444280,-500.0,0.00013698,2]
[353061256,1739537444289,-500.0,0.00013698,2]
[353061258,1739537444299,-500.0,0.00013698,2]
[353061260,1739537444308,-500.0,0.00013698,2]
[353061262,1739537444317,-500.0,0.00013698,2]
[353061264,1739537444327,-500.0,0.00013698,2]
[353061266,1739537444336,-500.0,0.00013698,2]
[353061268,1739537444345,-500.0,0.00013698,2]
[353061270,1739537444355,-500.0,0.00013698,2]
[353061272,1739537444364,-504.54162665,0.00013698,2]
[353061274,1739537444374,-500.0,0.00013698,2]
[353061276,1739537444383,-500.0,0.00013698,2]
[353061278,1739537444392,-500.0,0.00013698,2]
[353061280,1739537444402,-500.0,0.00013698,2]
[353061281,1739537444411,-504.07889812,0.00013698,2]
[353061284,1739537444420,-500.0,0.00013698,2]
[353061286,1739537444430,-500.0,0.00013698,2]
[353061287,1739537444439,-500.0,0.00013698,2]
[353061289,1739537444448,-500.0,0.00013698,2]
[353061291,1739537444457,-500.0,0.00013698,2]
[353061293,1739537444466,-502.62346678,0.00013698,2]
[353061295,1739537444476,-507.52556433,0.00013698,2]
[353061308,1739537444582,-500.0,0.00013698,2]
[353061310,1739537444591,-500.0,0.00013698,2]
[353061312,1739537444600,-505.64476219,0.00013698,2]
[353061314,1739537444610,-502.25182977,0.00013698,2]
[353061316,1739537444619,-504.41095536,0.00013698,2]
[353061317,1739537444633,-500.0,0.00013698,2]
[353061319,1739537444643,-505.20187798,0.00013698,2]
[353061322,1739537444652,-500.0,0.00013698,2]
[353061323,1739537444661,-506.62884864,0.00013698,2]
[353061325,1739537444672,-500.0,0.00013698,2]
[353061327,1739537444681,-510.20900562,0.00013698,2]
[353061329,1739537444690,-500.0,0.00013698,2]
[353061332,1739537444701,-500.0,0.00013698,2]
[353061334,1739537444710,-500.0,0.00013698,2]
[353061335,1739537444719,-502.37992106,0.00013698,2]
[353061336,1739537444728,-503.78989582,0.00013698,2]
[353061337,1739537444738,-500.0,0.00013698,2]
[353061338,1739537444747,-500.0,0.00013698,2]
[353061339,1739537444756,-506.1326365,0.00013698,2]
[353061340,1739537444765,-500.0,0.00013698,2]
[353061341,1739537444775,-591.8733026,0.00013698,2]
[353061342,1739537444784,-500.0,0.00013698,2]
[353061343,1739537444793,-632.14778912,0.00013698,2]
[353061344,1739537444803,-500.0,0.00013698,2]
[353061345,1739537444812,-500.0,0.00013698,2]
[353061347,1739537444821,-503.96682138,0.00013698,2]
[353061349,1739537444830,-512.76381802,0.00013698,2]
[353061351,1739537444840,-500.0,0.00013698,2]
[353061353,1739537444849,-608.23535538,0.00013698,2]
[353061355,1739537444859,-278.93305894,0.00013698,2]
[353061357,1739537444868,-501.52702874,0.00013698,2]
[353061359,1739537444877,-539.5961286,0.00013698,2]
[353061361,1739537444888,-571.77152435,0.00013698,2]
[353061363,1739537444898,-500.0,0.00013698,2]
[353061365,1739537444907,-505.80900162,0.00013698,2]
[353061367,1739537444916,-500.0,0.00013698,2]
[353061369,1739537444927,-504.35032319,0.00013698,2]
[353061371,1739537444937,-500.0,0.00013698,2]
[353061373,1739537444946,-500.0,0.00013698,2]
[353061375,1739537444956,-500.0,0.00013698,2]
[353061377,1739537444965,-500.0,0.00013698,2]
[353061379,1739537444975,-500.0,0.00013698,2]
[353061381,1739537444985,-500.0,0.00013698,2]
[353061383,1739537444994,-500.0,0.00013698,2]
[353061385,1739537445004,-508.49289406,0.00013698,2]
[353061387,1739537445014,-501.20127316,0.00013698,2]
[353061389,1739537445024,-504.83200725,0.00013698,2]
[353061391,1739537445034,-500.0,0.00013698,2]
[353061393,1739537445044,-500.0,0.00013698,2]
[353061395,1739537445052,-500.0,0.00013698,2]
[353061397,1739537445062,-500.0,0.00013698,2]
[353061399,1739537445071,-507.40338252,0.00013698,2]
[353061401,1739537445079,-507.11396285,0.00013698,2]
[353061403,1739537445089,-502.38394038,0.00013698,2]
[353061405,1739537445099,-500.0,0.00013698,2]
[353061407,1739537445108,-500.0,0.00013698,2]
[353061409,1739537445118,-500.0,0.00013698,2]
[353061411,1739537445127,-586.55,0.00013698,2]
[353061413,1739537445136,-500.0,0.00013698,2]
[353061415,1739537445146,-500.0,0.00013698,2]
[353061417,1739537445155,-503.62576979,0.00013698,2]
[353061419,1739537445164,-708.74,0.00013698,2]
[353061421,1739537445173,-504.15651145,0.00013698,2]
[353061423,1739537445183,-500.0,0.00013698,2]
[353061425,1739537445193,-637.57521457,0.00013698,2]
[353061427,1739537445203,-500.0,0.00013698,2]
[353061429,1739537445213,-500.0,0.00013698,2]
[353061431,1739537445222,-500.0,0.00013698,2]
[353061433,1739537445232,-358.213118,0.00013698,2]
[353061435,1739537445241,-186.87840812,0.00013698,2]
[353061437,1739537445251,-502.36504596,0.00013698,2]
[353061439,1739537445260,-503.91376669,0.00013698,2]
[353061441,1739537445270,-496.57369909,0.00013698,2]
[353061443,1739537445279,-500.0,0.00013698,2]
[353061445,1739537445288,-500.0,0.00013698,2]
[353061447,1739537445298,-500.0,0.00013698,2]
[353061449,1739537445307,-503.66824186,0.00013698,2]
[353061451,1739537445316,-500.0,0.00013698,2]
[353061453,1739537445326,-500.0,0.00013698,2]
[353061455,1739537445335,-500.0,0.00013698,2]
[353061457,1739537445344,-500.0,0.00013698,2]
[353061459,1739537445353,-897.17,0.00013698,2]
[353061461,1739537445363,-505.45977029,0.00013698,2]
[353061463,1739537445372,-500.0,0.00013698,2]
[353061465,1739537445381,-500.0,0.00013698,2]
[353061467,1739537445391,-500.0,0.00013698,2]
[353061469,1739537445400,-153.291906,0.00013698,2]
[353061471,1739537445409,-505.9928945,0.00013698,2]
[353061473,1739537445419,-500.0,0.00013698,2]
[353061475,1739537445428,-500.0,0.00013698,2]
[353061477,1739537445437,-500.0,0.00013698,2]
[353061478,1739537445447,-4571.01,0.00013698,2]
[353061480,1739537445456,-500.0,0.00013698,2]
[353061483,1739537445465,-500.0,0.00013698,2]
[353061484,1739537445474,-507.25365829,0.00013698,2]
[353061487,1739537445484,-500.0,0.00013698,2]
[353061488,1739537445494,-618.23254701,0.00013698,2]
[353061490,1739537445503,-500.0,0.00013698,2]
[353061493,1739537445512,-500.0,0.00013698,2]
[353061495,1739537445522,-593.96148487,0.00013698,2]
[353061496,1739537445531,-500.0,0.00013698,2]
[353061498,1739537445540,-500.0,0.00013698,2]
[353061500,1739537445549,-500.0,0.00013698,2]
[353061502,1739537445559,-564.5402565,0.00013698,2]
[353061504,1739537445569,-560.31701382,0.00013698,2]
[353061506,1739537445580,-503.60192043,0.00013698,2]
[353061508,1739537445589,-500.0,0.00013698,2]
[353061510,1739537445599,-500.0,0.00013698,2]
[353061512,1739537445608,-500.0,0.00013698,2]
[353061514,1739537445620,-517.87271797,0.00013698,2]
[353061516,1739537445632,-500.0,0.00013698,2]
[353061518,1739537445643,-502.33707918,0.00013698,2]
[353061520,1739537445652,-500.0,0.00013698,2]
[353061522,1739537445661,-501.12792587,0.00013698,2]
[353061524,1739537445670,-500.83363576,0.00013698,2]
[353061526,1739537445679,-500.0,0.00013698,2]
[353061528,1739537445689,-501.28541093,0.00013698,2]
[353061530,1739537445698,-500.0,0.00013698,2]
[353061532,1739537445707,-500.0,0.00013698,2]
[353061534,1739537445717,-508.57405025,0.00013698,2]
[353061536,1739537445727,-500.0,0.00013698,2]
[353061538,1739537445736,-500.0,0.00013698,2]
[353061540,1739537445746,-502.93777295,0.00013698,2]
[353061542,1739537445755,-500.0,0.00013698,2]
[353061544,1739537445764,-502.21947064,0.00013698,2]
[353061546,1739537445773,-500.0,0.00013698,2]
[353061548,1739537445782,-500.0,0.00013698,2]
[353061550,1739537445792,-502.77808425,0.00013698,2]
[353061552,1739537445801,-500.0,0.00013698,2]
[353061553,1739537445811,-500.0,0.00013698,2]
[353061555,1739537445820,-1099.4,0.00013698,2]
[353061558,1739537445830,-664.01,0.00013698,2]
[353061560,1739537445839,-500.0,0.00013698,2]
[353061562,1739537445848,-501.01808699,0.00013698,2]
[353061564,1739537445857,-500.0,0.00013698,2]
[353061566,1739537445866,-500.0,0.00013698,2]
[353061568,1739537445875,-500.0,0.00013698,2]
[353061570,1739537445885,-500.0,0.00013698,2]
[353061572,1739537445895,-500.0,0.00013698,2]
[353061574,1739537445904,-500.0,0.00013698,2]
[353061576,1739537445914,-500.0,0.00013698,2]
[353061578,1739537445924,-520.48164836,0.00013698,2]
[353061580,1739537445934,-500.0,0.00013698,2]
[353061582,1739537445943,-563.6483331,0.00013698,2]
[353061584,1739537445954,-500.0,0.00013698,2]
[353061586,1739537445964,-504.93130238,0.00013698,2]
[353061588,1739537445973,-500.0,0.00013698,2]
[353061590,1739537445982,-248.466983,0.00013698,2]
[353061592,1739537445992,-500.0,0.00013698,2]
[353061594,1739537446001,-500.0,0.00013698,2]
[353061596,1739537446011,-505.67964254,0.00013698,2]
[353061598,1739537446021,-502.02620409,0.00013698,2]
[353061600,1739537446031,-500.0,0.00013698,2]
[353061602,1739537446040,-635.8,0.00013698,2]
[353061604,1739537446049,-501.13708996,0.00013698,2]
[353061606,1739537446059,-356.10065545,0.00013698,2]
[353061608,1739537446069,-503.72147044,0.00013698,2]
[353061610,1739537446078,-500.0,0.00013698,2]
[353061612,1739537446088,-500.0,0.00013698,2]
[353061614,1739537446098,-500.0,0.00013698,2]
[353061616,1739537446108,-503.6375263,0.00013698,2]
[353061618,1739537446118,-500.0,0.00013698,2]
[353061621,1739537446128,-500.0,0.00013698,2]
[353061624,1739537446139,-506.3,0.00013698,2]
[353061626,1739537446148,-503.0604652,0.00013698,2]
[353061628,1739537446158,-500.0,0.00013698,2]
[353061630,1739537446167,-502.73563447,0.00013698,2]
[353061632,1739537446177,-500.0,0.00013698,2]
[353061634,1739537446186,-500.0,0.00013698,2]
[353061636,1739537446195,-500.63281688,0.00013698,2]
[353061638,1739537446206,-500.0,0.00013698,2]
[353061640,1739537446215,-500.0,0.00013698,2]
[353061642,1739537446224,-500.0,0.00013698,2]
[353061644,1739537446235,-500.0,0.00013698,2]
[353061646,1739537446247,-340.84518084,0.00013698,2]
[353061648,1739537446260,-500.0,0.00013698,2]
[353061650,1739537446269,-500.0,0.00013698,2]
[353061652,1739537446278,-1118.67,0.00013698,2]
[353061654,1739537446287,-500.0,0.00013698,2]
[353061656,1739537446296,-500.0,0.00013698,2]
[353061658,1739537446305,-501.77556609,0.00013698,2]
[353061660,1739537446313,-500.0,0.00013698,2]
[353061662,1739537446323,-500.0,0.00013698,2]
[353061664,1739537446332,-500.0,0.00013698,2]
[353061666,1739537446342,-500.0,0.00013698,2]
[353061668,1739537446351,-500.0,0.00013698,2]
[353061670,1739537446360,-755.67,0.00013698,2]
[353061672,1739537446370,-605.28,0.00013698,2]
[353061674,1739537446378,-502.67846226,0.00013698,2]
[353061676,1739537446387,-843.42,0.00013698,2]
[353061678,1739537446397,-500.0,0.00013698,2]
[353061680,1739537446406,-500.0,0.00013698,2]
[353061691,1739537446491,-500.0,0.00013698,2]
[353061693,1739537446511,-500.0,0.00013698,2]
[353061695,1739537446520,-502.44304911,0.00013698,2]
[353061697,1739537446530,-502.13582771,0.00013698,2]
[353061699,1739537446539,-500.0,0.00013698,2]
[353061701,1739537446549,-500.0,0.00013698,2]
[353061703,1739537446559,-500.0,0.00013698,2]
[353061705,1739537446569,-500.0,0.00013698,2]
[353061707,1739537446579,-500.0,0.00013698,2]
[353061709,1739537446588,-500.0,0.00013698,2]
[353061711,1739537446598,-500.0,0.00013698,2]
[353061713,1739537446607,-500.0,0.00013698,2]
[353061715,1739537446617,-500.0,0.00013698,2]
[353061717,1739537446630,-1135.02,0.00013698,2]
[353061719,1739537446639,-500.0,0.00013698,2]
[353061721,1739537446648,-500.0,0.00013698,2]
[353061723,1739537446658,-200.0,0.00013698,2]
[353061726,1739537446669,-500.0,0.00013698,2]
[353061727,1739537446678,-500.0,0.00013698,2]
[353061730,1739537446688,-500.388543,0.00013698,2]
[353061731,1739537446698,-500.0,0.00013698,2]
[353061734,1739537446709,-500.0,0.00013698,2]
[353061736,1739537446718,-2092.47,0.00013698,2]
[353061738,1739537446727,-500.0,0.00013698,2]
[353061739,1739537446737,-500.0,0.00013698,2]
[353061741,1739537446746,-1777.05,0.00013698,2]
[353061743,1739537446755,-500.0,0.00013698,2]
[353061746,1739537446765,-500.0,0.00013698,2]
[353061748,1739537446774,-500.0,0.00013698,2]
[353061749,1739537446783,-500.0,0.00013698,2]
[353061751,1739537446792,-500.0,0.00013698,2]
[353061754,1739537446802,-500.0,0.00013698,2]
[353061755,1739537446812,-500.0,0.00013698,2]
[353061758,1739537446821,-502.37430511,0.00013698,2]
[353061760,1739537446831,-500.0,0.00013698,2]
[353061761,1739537446840,-500.0,0.00013698,2]
[353061764,1739537446849,-500.0,0.00013698,2]
[353061765,1739537446859,-500.0,0.00013698,2]
[353061767,1739537446868,-500.0,0.00013698,2]
[353061769,1739537446877,-500.0,0.00013698,2]
[353061771,1739537446886,-503.97966346,0.00013698,2]
[353061773,1739537446896,-500.0,0.00013698,2]
[353061775,1739537446906,-504.89359182,0.00013698,2]
[353061777,1739537446915,-500.0,0.00013698,2]
[353061780,1739537446925,-500.0,0.00013698,2]
[353061781,1739537446935,-500.0,0.00013698,2]
[353061784,1739537446945,-500.0,0.00013698,2]
[353061786,1739537446955,-500.86716048,0.00013698,2]
[353061787,1739537446965,-500.0,0.00013698,2]
[353061789,1739537446974,-500.0,0.00013698,2]
[353061791,1739537446984,-502.16996037,0.00013698,2]
[353061793,1739537446994,-609.01,0.00013698,2]
[353061795,1739537447005,-500.0,0.00013698,2]
[353061797,1739537447014,-500.0,0.00013698,2]
[353061799,1739537447024,-500.0,0.00013698,2]
[353061801,1739537447034,-500.0,0.00013698,2]
[353061803,1739537447044,-500.0,0.00013698,2]
[353061804,1739537447054,-500.0,0.00013698,2]
[353061805,1739537447065,-500.0,0.00013698,2]
[353061806,1739537447077,-622.31,0.00013698,2]
[353061807,1739537447086,-500.0,0.00013698,2]
[353061808,1739537447096,-500.0,0.00013698,2]
[353061809,1739537447106,-500.0,0.00013698,2]
[353061810,1739537447119,-500.0,0.00013698,2]
[353061811,1739537447129,-500.0,0.00013698,2]
[353061813,1739537447139,-500.0,0.00013698,2]
[353061815,1739537447149,-501.04532177,0.00013698,2]
[353061817,1739537447159,-500.0,0.00013698,2]
[353061819,1739537447169,-500.0,0.00013698,2]
[353061821,1739537447178,-500.0,0.00013698,2]
[353061823,1739537447187,-500.0,0.00013698,2]
[353061825,1739537447198,-500.0,0.00013698,2]
[353061827,1739537447209,-500.0,0.00013698,2]
[353061829,1739537447218,-593.58,0.00013698,2]
[353061831,1739537447229,-500.0,0.00013698,2]
[353061833,1739537447239,-500.0,0.00013698,2]
[353061835,1739537447248,-510.43012567,0.00013698,2]
[353061837,1739537447258,-500.0,0.00013698,2]
[353061839,1739537447267,-500.0,0.00013698,2]
[353061840,1739537447276,-501.53427438,0.00013698,2]
[353061843,1739537447286,-1408.38,0.00013698,2]
[353061845,1739537447296,-500.0,0.00013698,2]
[353061847,1739537447306,-500.0,0.00013698,2]
[353061849,1739537447317,-1194.09,0.00013698,2]
[353061851,1739537447327,-500.0,0.00013698,2]
[353061853,1739537447336,-500.0,0.00013698,2]
[353061855,1739537447345,-500.0,0.00013698,2]
[353061857,1739537447354,-981.95,0.00013698,2]
[353061859,1739537447364,-500.0,0.00013698,2]
[353061861,1739537447373,-506.66445035,0.00013698,2]
[353061863,1739537447382,-500.0,0.00013698,2]
[353061865,1739537447391,-500.0,0.00013698,2]
[353061867,1739537447401,-500.0,0.00013698,2]
[353061869,1739537447411,-500.0,0.00013698,2]
[353061871,1739537447420,-500.0,0.00013698,2]
[353061873,1739537447430,-500.0,0.00013698,2]
[353061874,1739537447439,-500.0,0.00013698,2]
[353061876,1739537447448,-500.0,0.00013698,2]
[353061878,1739537447457,-548.14514686,0.00013698,2]
[353061880,1739537447466,-500.0,0.00013698,2]
[353061882,1739537447475,-500.0,0.00013698,2]
[353061884,1739537447484,-514.35249509,0.00013698,2]
[353061886,1739537447493,-500.0,0.00013698,2]
[353061888,1739537447503,-500.0,0.00013698,2]
[353061890,1739537447513,-520.53479289,0.00013698,2]
[353061892,1739537447522,-500.0,0.00013698,2]
[353061894,1739537447532,-500.0,0.00013698,2]
[353061896,1739537447542,-500.0,0.00013698,2]
[353061898,1739537447552,-507.1406912,0.00013698,2]
[353061900,1739537447561,-632.23,0.00013698,2]
[353061902,1739537447571,-500.0,0.00013698,2]
[353061904,1739537447580,-500.0,0.00013698,2]
[353061906,1739537447589,-500.0,0.00013698,2]
[353061908,1739537447605,-508.12824934,0.00013698,2]
[353061910,1739537447615,-500.0,0.00013698,2]
[353061912,1739537447625,-502.57195589,0.00013698,2]
[353061914,1739537447638,-779.75,0.00013698,2]
[353061916,1739537447648,-501.98615083,0.00013698,2]
[353061918,1739537447658,-500.0,0.00013698,2]
[353061920,1739537447667,-500.0,0.00013698,2]
[353061922,1739537447679,-500.0,0.00013698,2]
[353061924,1739537447688,-500.0,0.00013698,2]
[353061926,1739537447697,-500.0,0.00013698,2]
[353061928,1739537447708,-500.0,0.00013698,2]
[353061930,1739537447718,-500.0,0.00013698,2]
[353061932,1739537447727,-500.0,0.00013698,2]
[353061934,1739537447737,-500.0,0.00013698,2]
[353061936,1739537447747,-500.0,0.00013698,2]
[353061938,1739537447756,-2186.15,0.00013698,2]
[353061940,1739537447766,-2186.15,0.00013698,2]
[353061943,1739537447776,-500.0,0.00013698,2]
[353061945,1739537447786,-2186.15,0.00013698,2]
[353061947,1739537447795,-500.0,0.00013698,2]
[353061949,1739537447805,-2186.15,0.00013698,2]
[353061950,1739537447814,-2186.15,0.00013698,2]
[353061952,1739537447823,-2186.15,0.00013698,2]
[353061954,1739537447833,-2186.15,0.00013698,2]
[353061956,1739537447843,-2186.15,0.00013698,2]
[353061957,1739537447852,-711.5,0.00013698,2]
[353061958,1739537447862,-2186.15,0.00013698,2]
[353061959,1739537447871,-501.51347041,0.00013698,2]
[353061960,1739537447881,-2186.15,0.00013698,2]
[353061961,1739537447890,-2186.15,0.00013698,2]
[353061962,1739537447900,-2186.15,0.00013698,2]
[353061963,1739537447910,-2186.15,0.00013698,2]
[353061964,1739537447920,-500.0,0.00013698,2]
[353061965,1739537447930,-608.38,0.00013698,2]
[353061966,1739537447940,-500.0,0.00013698,2]
[353061968,1739537447950,-500.54275653,0.00013698,2]
[353061969,1739537447960,-500.0,0.00013698,2]
[353061971,1739537447969,-500.0,0.00013698,2]
[353061973,1739537447979,-500.0,0.00013698,2]
[353061975,1739537447989,-500.0,0.00013698,2]
[353061976,1739537447999,-500.0,0.00013698,2]
[353061978,1739537448010,-500.0,0.00013698,2]
[353061980,1739537448021,-521.55,0.00013698,2]
[353061981,1739537448031,-500.0,0.00013698,2]
[353061982,1739537448041,-500.0,0.00013698,2]
[353061983,1739537448052,-505.35593445,0.00013698,2]
[353061984,1739537448062,-222.14496059,0.00013698,2]
[353061985,1739537448072,-500.0,0.00013698,2]
[353061986,1739537448082,-501.492268,0.00013698,2]
[353061987,1739537448092,-500.0,0.00013698,2]
[353061988,1739537448103,-500.0,0.00013698,2]
[353061989,1739537448113,-156.890318,0.00013698,2]
[353061990,1739537448123,-500.0,0.00013698,2]
[353061991,1739537448133,-500.0,0.00013698,2]
[353061992,1739537448143,-500.0,0.00013698,2]
[353061993,1739537448153,-521.09656408,0.00013698,2]
[353061994,1739537448163,-553.9,0.00013698,2]
[353061995,1739537448174,-500.0,0.00013698,2]
[353061996,1739537448184,-154.64693613,0.00013698,2]
[353061997,1739537448195,-504.55653424,0.00013698,2]
[353061998,1739537448204,-707.22,0.00013698,2]
[353061999,1739537448214,-500.0,0.00013698,2]
[353062000,1739537448224,-500.0,0.00013698,2]
[353062001,1739537448235,-500.0,0.00013698,2]
[353062002,1739537448246,-500.0,0.00013698,2]
[353062003,1739537448357,-500.0,0.00013698,2]
[353062004,1739537448368,-500.0,0.00013698,2]
[353062005,1739537448381,-500.0,0.00013698,2]
[353062006,1739537448391,-500.0,0.00013698,2]
[353062007,1739537448401,-500.0,0.00013698,2]
[353062008,1739537448412,-500.0,0.00013698,2]
[353062009,1739537448424,-500.0,0.00013698,2]
[353062010,1739537448435,-500.0,0.00013698,2]
[353062011,1739537448446,-500.0,0.00013698,2]
[353062012,1739537448456,-500.0,0.00013698,2]
[353062013,1739537448467,-501.30376202,0.00013698,2]
[353062014,1739537448477,-501.60122399,0.00013698,2]
[353062015,1739537448487,-500.0,0.00013698,2]
[353062016,1739537448499,-500.0,0.00013698,2]
[353062017,1739537448509,-500.0,0.00013698,2]
[353062018,1739537448519,-500.0,0.00013698,2]
[353062019,1739537448530,-500.0,0.00013698,2]
[353062020,1739537448541,-646.58,0.00013698,2]
[353062021,1739537448551,-500.0,0.00013698,2]
[353062022,1739537448561,-500.0,0.00013698,2]
[353062023,1739537448571,-500.0,0.00013698,2]
[353062024,1739537448581,-500.0,0.00013698,2]
[353062025,1739537448591,-500.0,0.00013698,2]
[353062027,1739537448602,-500.0,0.00013698,2]
[353062029,1739537448612,-500.0,0.00013698,2]
[353062031,1739537448625,-500.0,0.00013698,2]
[353062033,1739537448635,-821.06,0.00013698,2]
[353062035,1739537448645,-502.23962759,0.00013698,2]
[353062037,1739537448655,-500.0,0.00013698,2]
[353062039,1739537448666,-500.0,0.00013698,2]
[353062041,1739537448676,-500.0,0.00013698,2]
[353062043,1739537448686,-500.0,0.00013698,2]
[353062045,1739537448695,-500.0,0.00013698,2]
[353062047,1739537448706,-500.0,0.00013698,2]
[353062049,1739537448716,-500.0,0.00013698,2]
[353062051,1739537448726,-567.35,0.00013698,2]
[353062053,1739537448736,-500.0,0.00013698,2]
[353062055,1739537448746,-500.0,0.00013698,2]
[353062056,1739537448755,-500.0,0.00013698,2]
[353062057,1739537448765,-500.0,0.00013698,2]
[353062058,1739537448775,-500.0,0.00013698,2]
[353062059,1739537448785,-500.0,0.00013698,2]
[353062060,1739537448795,-500.0,0.00013698,2]
[353062061,1739537448805,-500.0,0.00013698,2]
[353062062,1739537448815,-500.0,0.00013698,2]
[353062063,1739537448826,-500.0,0.00013698,2]
[353062064,1739537448837,-500.0,0.00013698,2]
[353062065,1739537448848,-582.75,0.00013698,2]
[353062066,1739537448858,-500.0,0.00013698,2]
[353062067,1739537448868,-569.74,0.00013698,2]
[353062068,1739537448878,-500.0,0.00013698,2]
[353062069,1739537448888,-500.0,0.00013698,2]
[353062070,1739537448898,-513.02276663,0.00013698,2]
[353062071,1739537448908,-500.0,0.00013698,2]
[353062073,1739537448918,-500.0,0.00013698,2]
[353062075,1739537448928,-500.0,0.00013698,2]
[353062077,1739537448938,-789.99,0.00013698,2]
[353062079,1739537448948,-500.0,0.00013698,2]
[353062081,1739537448959,-500.0,0.00013698,2]
[353062083,1739537448970,-506.34444378,0.00013698,2]
[353062085,1739537448980,-500.58474995,0.00013698,2]
[353062087,1739537448989,-500.0,0.00013698,2]
[353062088,1739537449000,-500.75594601,0.00013698,2]
[353062089,1739537449010,-511.88275004,0.00013698,2]
[353062090,1739537449020,-500.0,0.00013698,2]
[353062091,1739537449030,-723.23,0.00013698,2]
[353062092,1739537449039,-500.0,0.00013698,2]
[353062093,1739537449049,-500.0,0.00013698,2]
[353062094,1739537449059,-500.77736753,0.00013698,2]
[353062095,1739537449070,-500.0,0.00013698,2]
[353062096,1739537449080,-505.30988394,0.00013698,2]
[353062097,1739537449090,-152.119774,0.00013698,2]
[353062098,1739537449100,-629.85,0.00013698,2]
[353062100,1739537449110,-1299.37,0.00013698,2]
[353062102,1739537449121,-500.0,0.00013698,2]
[353062104,1739537449132,-500.0,0.00013698,2]
[353062106,1739537449143,-447.9847992,0.00013698,2]
[353062107,1739537449153,-1000.0,0.00013698,2]
[353062109,1739537449164,-500.0,0.00013698,2]
[353062110,1739537449174,-501.02575943,0.00013698,2]
[353062111,1739537449184,-552.92,0.00013698,2]
[353062112,1739537449195,-510.91,0.00013698,2]
[353062113,1739537449206,-500.0,0.00013698,2]
[353062114,1739537449217,-859.87,0.00013698,2]
[353062115,1739537449227,-234.265979,0.00013698,2]
[353062116,1739537449238,-500.70752509,0.00013698,2]
[353062117,1739537449248,-500.0,0.00013698,2]
[353062118,1739537449259,-500.0,0.00013698,2]